fUST/lending_fUST_20250723
["ID","MTS","AMOUNT","RATE_DAILY","PERIOD"]
[374160779,1753233043573,-460.0,0.00017886,2]
[374160780,1753233043584,-460.0,0.00017886,2]
[374160781,1753233043596,-460.0,0.00017886,2]
[374160782,1753233043610,-460.0,0.00017886,2]
[374160783,1753233043621,-460.0,0.00017886,2]
[374160784,1753233043633,-2977.13,0.00017886,2]
[374160785,1753233043645,-460.0,0.00017886,2]
[374160786,1753233043657,-264.41632605,0.00017886,2]
[374160787,1753233043670,-460.0,0.00017886,2]
[374160788,1753233043681,-460.0,0.00017886,2]
[374160790,1753233043693,-460.0,0.00017886,2]
[374160791,1753233043706,-460.0,0.00017886,2]
[374160792,1753233043718,-460.0,0.00017886,2]
[374160794,1753233043732,-460.0,0.00017886,2]
[374160795,1753233043745,-460.0,0.00017886,2]
[374160796,1753233043757,-1070.76,0.00017886,2]
[374160797,1753233043767,-460.0,0.00017886,2]
[374160798,1753233043778,-460.0,0.00017886,2]
[374160799,1753233043791,-460.0,0.00017886,2]
[374160800,1753233043801,-460.0,0.00017886,2]
[374160801,1753233043815,-460.0,0.00017886,2]
[374160802,1753233043828,-460.0,0.00017886,2]
[374160803,1753233043841,-460.0,0.00017886,2]
[374160804,1753233043854,-460.0,0.00017886,2]
[374160805,1753233043867,-460.0,0.00017886,2]
[374160806,1753233043880,-534.2883854,0.00017886,2]
[374160807,1753233043893,-462.47358001,0.00017886,2]
[374160808,1753233043906,-460.0,0.00017886,2]
[374160809,1753233043916,-460.0,0.00017886,2]
[374160810,1753233043926,-244.27372204,0.00017886,2]
[374160811,1753233043937,-460.0,0.00017886,2]
[374160812,1753233043947,-460.0,0.00017886,2]
[374160813,1753233043960,-462.45463036,0.00017886,2]
[374160814,1753233043973,-460.0,0.00017886,2]
[374160815,1753233043985,-460.0,0.00017886,2]
[374160816,1753233043996,-461.97020172,0.00017886,2]
[374160817,1753233044007,-460.0,0.00017886,2]
[374160818,1753233044019,-460.0,0.00017886,2]
[374160819,1753233044030,-460.0,0.00017886,2]
[374160820,1753233044042,-460.0,0.00017886,2]
[374160821,1753233044054,-460.0,0.00017886,2]
[374160822,1753233044064,-460.0,0.00017886,2]
[374160823,1753233044075,-460.0,0.00017886,2]
[374160824,1753233044086,-460.0,0.00017886,2]
[374160825,1753233044096,-460.0,0.00017886,2]
[374160826,1753233044107,-460.0,0.00017886,2]
[374160827,1753233044118,-460.0,0.00017886,2]
[374160828,1753233044129,-460.0,0.00017886,2]
[374160829,1753233044140,-460.0,0.00017886,2]
[374160830,1753233044151,-460.0,0.00017886,2]
[374160831,1753233044162,-460.0,0.00017886,2]
[374160832,1753233044174,-203.58249567,0.00017886,2]
[374160833,1753233044185,-460.0,0.00017886,2]
[374160834,1753233044197,-460.0,0.00017886,2]
[374160835,1753233044207,-460.0,0.00017886,2]
[374160836,1753233044218,-460.0,0.00017886,2]
[374160837,1753233044230,-639.35,0.00017886,2]
[374160838,1753233044241,-460.0,0.00017886,2]
[374160839,1753233044251,-880.33,0.00017886,2]
[374160840,1753233044262,-460.0,0.00017886,2]
[374160841,1753233044273,-460.0,0.00017886,2]
[374160842,1753233044285,-460.0,0.00017886,2]
[374160843,1753233044296,-460.0,0.00017886,2]
[374160844,1753233044307,-326.58779432,0.00017886,2]
[374160845,1753233044318,-460.0,0.00017886,2]
[374160846,1753233044329,-460.0,0.00017886,2]
[374160847,1753233044341,-460.0,0.00017886,2]
[374160848,1753233044352,-460.0,0.00017886,2]
[374160849,1753233044363,-460.0,0.00017886,2]
[374160850,1753233044374,-460.0,0.00017886,2]
[374160851,1753233044385,-460.0,0.00017886,2]
[374160852,1753233044395,-460.0,0.00017886,2]
[374160853,1753233044406,-281.07,0.00017886,2]
[374160854,1753233044417,-460.0,0.00017886,2]
[374160856,1753233044429,-460.0,0.00017886,2]
[374160857,1753233044440,-460.0,0.00017886,2]
[374160858,1753233044450,-563.35432047,0.00017886,2]
[374160859,1753233044461,-460.0,0.00017886,2]
[374160860,1753233044471,-460.0,0.00017886,2]
[374160861,1753233044483,-536.85,0.00017886,2]
[374160862,1753233044494,-460.0,0.00017886,2]
[374160863,1753233044504,-460.0,0.00017886,2]
[374160864,1753233044515,-460.0,0.00017886,2]
[374160865,1753233044527,-675.06,0.00017886,2]
[374160866,1753233044538,-460.0,0.00017886,2]
[374160867,1753233044549,-571.86,0.00017886,2]
[374160868,1753233044560,-460.0,0.00017886,2]
[374160869,1753233044571,-460.0,0.00017886,2]
[374160870,1753233044582,-460.0,0.00017886,2]
[374160871,1753233044593,-461.71,0.00017886,2]
[374160872,1753233044603,-477.97,0.00017886,2]
[374160873,1753233044615,-460.0,0.00017886,2]
[374160874,1753233044626,-460.0,0.00017886,2]
[374160875,1753233044640,-460.0,0.00017886,2]
[374160876,1753233044651,-460.0,0.00017886,2]
[374160877,1753233044662,-460.0,0.00017886,2]
[374160879,1753233044788,-460.0,0.00017886,2]
[374160880,1753233044804,-460.0,0.00017886,2]
[374160881,1753233044814,-551.29283034,0.00017887,2]
[374160882,1753233044824,-500.0,0.00017887,2]
[374160883,1753233044833,-500.0,0.00017887,2]
[374160884,1753233044842,-460.0,0.00017887,2]
[374160885,1753233044852,-460.0,0.00017887,2]
[374160886,1753233044861,-494.46,0.00017887,2]
[374160887,1753233044870,-158.97382731,0.00017888,2]
[374160889,1753233044879,-460.0,0.00017888,2]
[374160890,1753233044888,-460.0,0.00017888,2]
[374160891,1753233044898,-2246.89872734,0.000179,2]
[374160893,1753233044907,-857.45,0.00018156,2]
[374160894,1753233044917,-1007.79,0.00018156,2]
[374160895,1753233044926,-1306.39,0.00018156,2]
[374160896,1753233044936,-1097.55,0.00018156,2]
[374160897,1753233044945,-460.0,0.00018156,2]
[374160898,1753233044955,-460.0,0.00018156,2]
[374160899,1753233044965,-460.0,0.00018156,2]
[374160900,1753233044975,-460.0,0.00018157,2]
[374160901,1753233044985,-460.0,0.00018157,2]
[374160902,1753233044994,-460.0,0.00018157,2]
[374160903,1753233045003,-460.0,0.00018157,2]
[374160904,1753233045014,-2089.16,0.00018158,2]
[374160905,1753233045023,-755.24,0.00018158,2]
[374160906,1753233045032,-1008.07,0.00018158,2]
[374160907,1753233045042,-774.97,0.00018158,2]
[374160908,1753233045051,-1434.22,0.00018158,2]
[374160909,1753233045060,-460.0,0.00018158,2]
[374160910,1753233045069,-1865.85,0.00018158,2]
[374160911,1753233045078,-500.0,0.00018159,2]
[374160912,1753233045087,-500.0,0.00018159,2]
[374160913,1753233045097,-460.0,0.0001816,2]
[374160914,1753233045106,-460.0,0.0001816,2]
[374160915,1753233045116,-460.0,0.0001816,2]
[374160916,1753233045125,-460.0,0.0001816,2]
[374160917,1753233045135,-460.0,0.0001816,2]
[374160918,1753233045144,-2977.13,0.0001816,2]
[374160919,1753233045153,-460.0,0.0001816,2]
[374160920,1753233045163,-460.0,0.0001816,2]
[374160921,1753233045173,-460.0,0.0001816,2]
[374160922,1753233045182,-460.0,0.0001816,2]
[374160923,1753233045191,-385.43397086,0.0001816,2]
[374160924,1753233045200,-1070.76,0.0001816,2]
[374160925,1753233045210,-460.0,0.0001816,2]
[374160926,1753233045219,-154.83826796,0.0001816,2]
[374160927,1753233045229,-460.0,0.0001816,2]
[374160928,1753233045238,-221.22568892,0.0001816,2]
[374160929,1753233045247,-460.0,0.0001816,2]
[374160930,1753233045256,-460.0,0.0001816,2]
[374160931,1753233045265,-460.0,0.0001816,2]
[374160932,1753233045275,-460.0,0.0001816,2]
[374160933,1753233045285,-460.0,0.0001816,2]
[374160934,1753233045295,-460.0,0.0001816,2]
[374160935,1753233045304,-460.0,0.0001816,2]
[374160936,1753233045315,-460.0,0.0001816,2]
[374160937,1753233045324,-460.0,0.0001816,2]
[374160938,1753233045335,-460.0,0.0001816,2]
[374160939,1753233045343,-460.0,0.0001816,2]
[374160940,1753233045353,-460.0,0.0001816,2]
[374160941,1753233045363,-460.0,0.0001816,2]
[374160942,1753233045373,-460.0,0.0001816,2]
[374160944,1753233045384,-460.0,0.0001816,2]
[374160945,1753233045393,-639.35,0.0001816,2]
[374160946,1753233045402,-460.0,0.0001816,2]
[374160947,1753233045412,-880.33,0.0001816,2]
[374160948,1753233045421,-460.0,0.0001816,2]
[374160949,1753233045430,-460.0,0.0001816,2]
[374160951,1753233045439,-460.0,0.0001816,2]
[374160952,1753233045449,-460.0,0.0001816,2]
[374160954,1753233045459,-460.0,0.0001816,2]
[374160955,1753233045468,-460.0,0.0001816,2]
[374160956,1753233045478,-460.0,0.0001816,2]
[374160957,1753233045487,-460.0,0.0001816,2]
[374160958,1753233045497,-460.0,0.0001816,2]
[374160959,1753233045506,-536.85,0.0001816,2]
[374160960,1753233045515,-460.0,0.0001816,2]
[374160961,1753233045524,-460.0,0.0001816,2]
[374160962,1753233045534,-675.06,0.0001816,2]
[374160963,1753233045543,-460.0,0.0001816,2]
[374160964,1753233045552,-460.0,0.0001816,2]
[374160965,1753233045561,-178.47119342,0.0001816,2]
[374160966,1753233045571,-608.32,0.0001816,2]
[374160967,1753233045581,-461.71,0.0001816,2]
[374160968,1753233045590,-477.97,0.0001816,2]
[374160969,1753233045599,-460.0,0.0001816,2]
[374160970,1753233045608,-460.0,0.0001816,2]
[374160971,1753233045617,-460.0,0.0001816,2]
[374160972,1753233045627,-500.0,0.00018175,2]
[374160973,1753233045640,-2246.89872723,0.00018176,2]
[374160974,1753233045649,-476.0,0.00018337,2]
[374160975,1753233045658,-420.0,0.00018337,2]
[374160976,1753233045667,-1000.0,0.00018421,2]
[374160977,1753233045676,-857.45,0.0001843,2]
[374160978,1753233045686,-1007.79,0.0001843,2]
[374160979,1753233045695,-1306.39,0.0001843,2]
[374160980,1753233045703,-1097.55,0.0001843,2]
[374160981,1753233045712,-460.0,0.0001843,2]
[374160982,1753233045722,-460.0,0.0001843,2]
[374160983,1753233045731,-460.0,0.0001843,2]
[374160984,1753233045740,-397.1,0.00018431,2]
[374160985,1753233045749,-460.0,0.00018431,2]
[374160986,1753233045758,-460.0,0.00018431,2]
[374160987,1753233045767,-460.0,0.00018431,2]
[374160988,1753233045776,-3922.98894207,0.00018432,2]
[374160989,1753233045785,-2089.16,0.00018432,2]
[374160990,1753233045795,-1008.07,0.00018432,2]
[374160991,1753233045804,-774.97,0.00018432,2]
[374160992,1753233045813,-1434.22,0.00018432,2]
[374160993,1753233045821,-460.0,0.00018432,2]
[374160994,1753233045830,-1865.85,0.00018432,2]
[374160995,1753233045839,-460.0,0.00018434,2]
[374160996,1753233045848,-2977.13,0.00018434,2]
[374160997,1753233045858,-460.0,0.00018434,2]
[374160998,1753233045868,-460.0,0.00018434,2]
[374160999,1753233045878,-1070.76,0.00018434,2]
[374161000,1753233045888,-460.0,0.00018434,2]
[374161001,1753233045898,-460.0,0.00018434,2]
[374161002,1753233045907,-460.0,0.00018434,2]
[374161003,1753233045917,-460.0,0.00018434,2]
[374161004,1753233045926,-460.0,0.00018434,2]
[374161005,1753233045935,-275.45016382,0.00018434,2]
[374161006,1753233045945,-460.0,0.00018434,2]
[374161007,1753233045954,-460.0,0.00018434,2]
[374161008,1753233045963,-460.0,0.00018434,2]
[374161009,1753233045973,-460.0,0.00018434,2]
[374161010,1753233045982,-460.0,0.00018434,2]
[374161011,1753233045992,-460.0,0.00018434,2]
[374161012,1753233046001,-460.0,0.00018434,2]
[374161013,1753233046011,-460.0,0.00018434,2]
[374161014,1753233046020,-639.35,0.00018434,2]
[374161015,1753233046032,-460.0,0.00018434,2]
[374161016,1753233046041,-880.33,0.00018434,2]
[374161017,1753233046052,-460.0,0.00018434,2]
[374161018,1753233046061,-460.0,0.00018434,2]
[374161019,1753233046071,-460.0,0.00018434,2]
[374161020,1753233046080,-588.73,0.00018434,2]
[374161021,1753233046090,-460.0,0.00018434,2]
[374161022,1753233046099,-460.0,0.00018434,2]
[374161023,1753233046109,-460.0,0.00018434,2]
[374161024,1753233046120,-536.85,0.00018434,2]
[374161025,1753233046131,-460.0,0.00018434,2]
[374161026,1753233046140,-460.0,0.00018434,2]
[374161027,1753233046149,-675.06,0.00018434,2]
[374161028,1753233046159,-460.0,0.00018434,2]
[374161029,1753233046168,-460.0,0.00018434,2]
[374161030,1753233046177,-461.71,0.00018434,2]
[374161031,1753233046187,-477.97,0.00018434,2]
[374161032,1753233046197,-460.0,0.00018434,2]
[374161033,1753233046206,-460.0,0.00018434,2]
[374161034,1753233046216,-460.0,0.00018434,2]
[374161035,1753233046225,-500.0,0.00018435,2]
[374161036,1753233046235,-2246.89872723,0.00018452,2]
[374161037,1753233046244,-3000.0,0.000185,2]
[374161038,1753233046254,-3000.0,0.0001851,2]
[374161039,1753233046263,-3000.0,0.0001852,2]
[374161040,1753233046272,-3000.0,0.0001853,2]
[374161041,1753233046283,-3000.0,0.0001854,2]
[374161042,1753233046292,-3000.0,0.0001855,2]
[374161043,1753233046301,-3000.0,0.0001856,2]
[374161044,1753233046311,-3000.0,0.0001857,2]
[374161045,1753233046320,-3000.0,0.0001858,2]
[374161046,1753233046329,-3000.0,0.0001859,2]
[374161047,1753233046338,-3000.0,0.000186,2]
[374161048,1753233046348,-3000.0,0.0001861,2]
[374161049,1753233046357,-3000.0,0.0001862,2]
[374161050,1753233046367,-3000.0,0.0001863,2]
[374161051,1753233046386,-160.0,0.00018632,2]
[374161052,1753233046395,-1064.36467813,0.00018639,2]
[374161053,1753233046404,-1064.36467813,0.00018639,2]
[374161054,1753233046414,-1064.36467813,0.00018639,2]
[374161055,1753233046423,-1064.36467813,0.00018639,2]
[374161056,1753233046431,-1064.36467813,0.00018639,2]
[374161057,1753233046441,-1064.36467813,0.00018639,2]
[374161058,1753233046450,-1064.36467813,0.00018639,2]
[374161059,1753233046459,-1064.36467813,0.00018639,2]
[374161060,1753233046468,-1064.36467813,0.00018639,2]
[374161061,1753233046477,-1064.36467813,0.00018639,2]
[374161062,1753233046487,-1064.36467813,0.00018639,2]
[374161063,1753233046496,-1064.36467813,0.00018639,2]
[374161064,1753233046505,-1064.36467813,0.00018639,2]
[374161065,1753233046514,-1064.36467813,0.00018639,2]
[374161066,1753233046524,-1064.36467813,0.00018639,2]
[374161067,1753233046533,-1064.36467813,0.00018639,2]
[374161068,1753233046543,-1064.36467813,0.00018639,2]
[374161069,1753233046553,-1064.36467813,0.00018639,2]
[374161070,1753233046562,-1064.36467813,0.00018639,2]
[374161071,1753233046571,-1064.36467813,0.00018639,2]
[374161072,1753233046581,-3000.0,0.0001864,2]
[374161073,1753233046590,-3000.0,0.0001865,2]
[374161074,1753233046599,-3000.0,0.0001866,2]
[374161075,1753233046608,-3000.0,0.0001867,2]
[374161076,1753233046617,-3000.0,0.0001868,2]
[374161077,1753233046626,-3000.0,0.0001869,2]
[374161078,1753233046640,-162.0,0.000187,2]
[374161079,1753233046650,-162.0,0.000187,2]
[374161080,1753233046659,-3000.0,0.000187,2]
[374161081,1753233046668,-857.45,0.00018704,2]
[374161082,1753233046679,-1007.79,0.00018704,2]
[374161083,1753233046689,-1306.39,0.00018704,2]
[374161084,1753233046700,-1097.55,0.00018704,2]
[374161085,1753233046710,-460.0,0.00018704,2]
[374161086,1753233046723,-460.0,0.00018704,2]
[374161087,1753233046734,-609.56,0.00018704,2]
[374161088,1753233046743,-460.0,0.00018705,2]
[374161089,1753233046754,-460.0,0.00018705,2]
[374161090,1753233046763,-2089.16,0.00018706,2]
[374161091,1753233046773,-1008.07,0.00018706,2]
[374161092,1753233046783,-774.97,0.00018706,2]
[374161093,1753233046792,-1434.22,0.00018706,2]
[374161094,1753233046802,-482.22,0.00018706,2]
[374161095,1753233046815,-1865.85,0.00018706,2]
[374161096,1753233046825,-500.0,0.00018707,2]
[374161097,1753233046835,-553.16550915,0.00018708,2]
[374161098,1753233046844,-2977.13,0.00018708,2]
[374161099,1753233046855,-460.0,0.00018708,2]
[374161100,1753233046864,-460.0,0.00018708,2]
[374161101,1753233046873,-1070.76,0.00018708,2]
[374161102,1753233046883,-460.0,0.00018708,2]
[374161103,1753233046892,-460.0,0.00018708,2]
[374161104,1753233046901,-460.0,0.00018708,2]
[374161105,1753233046910,-460.0,0.00018708,2]
[374161106,1753233046919,-460.0,0.00018708,2]
[374161107,1753233046929,-460.0,0.00018708,2]
[374161108,1753233046938,-460.0,0.00018708,2]
[374161109,1753233046948,-460.0,0.00018708,2]
[374161110,1753233046957,-460.0,0.00018708,2]
[374161111,1753233046967,-460.0,0.00018708,2]
[374161112,1753233046976,-460.0,0.00018708,2]
[374161113,1753233046985,-460.0,0.00018708,2]
[374161114,1753233046995,-460.0,0.00018708,2]
[374161115,1753233047004,-639.35,0.00018708,2]
[374161116,1753233047013,-460.0,0.00018708,2]
[374161117,1753233047022,-880.33,0.00018708,2]
[374161118,1753233047032,-460.0,0.00018708,2]
[374161119,1753233047041,-460.0,0.00018708,2]
[374161120,1753233047050,-460.0,0.00018708,2]
[374161121,1753233047059,-460.0,0.00018708,2]
[374161122,1753233047068,-460.0,0.00018708,2]
[374161123,1753233047078,-536.85,0.00018708,2]
[374161124,1753233047087,-460.0,0.00018708,2]
[374161125,1753233047096,-460.0,0.00018708,2]
[374161126,1753233047105,-675.06,0.00018708,2]
[374161127,1753233047114,-460.0,0.00018708,2]
[374161128,1753233047123,-460.0,0.00018708,2]
[374161129,1753233047132,-461.71,0.00018708,2]
[374161130,1753233047141,-477.97,0.00018708,2]
[374161131,1753233047150,-460.0,0.00018708,2]
[374161132,1753233047159,-460.0,0.00018708,2]
[374161133,1753233047168,-460.0,0.00018708,2]
[374161134,1753233047177,-3000.0,0.0001871,2]
[374161135,1753233047186,-3000.0,0.0001872,2]
[374161136,1753233047196,-2246.89872723,0.00018728,2]
[374161137,1753233047205,-3000.0,0.0001873,2]
[374161138,1753233047214,-3000.0,0.0001874,2]
[374161139,1753233047224,-3000.0,0.0001875,2]
[374161140,1753233047233,-3000.0,0.0001876,2]
[374161141,1753233047249,-3000.0,0.0001877,2]
[374161142,1753233047392,-500.0,0.00018773,2]
[374161143,1753233047402,-500.0,0.00018773,2]
[374161144,1753233047413,-500.16605622,0.00018773,2]
[374161145,1753233047422,-500.0,0.00018773,2]
[374161146,1753233047432,-165.42282706,0.00018773,2]
[374161147,1753233047441,-160.25012645,0.00018773,2]
[374161148,1753233047450,-500.0,0.00018773,2]
[374161149,1753233047460,-500.0,0.00018773,2]
[374161150,1753233047469,-500.0,0.00018773,2]
[374161151,1753233047479,-472.07520401,0.00018773,2]
[374161152,1753233047488,-500.0,0.00018773,2]
[374161153,1753233047498,-500.0,0.00018773,2]
[374161154,1753233047507,-500.0,0.00018773,2]
[374161155,1753233047517,-500.0,0.00018773,2]
[374161156,1753233047526,-500.44268166,0.00018773,2]
[374161157,1753233047536,-500.0,0.00018773,2]
[374161158,1753233047556,-500.0,0.00018773,2]
[374161159,1753233047571,-500.0,0.00018773,2]
[374161160,1753233047580,-198.98997098,0.00018773,2]
[374161161,1753233047589,-500.0,0.00018773,2]
[374161162,1753233047598,-3000.0,0.0001878,2]
[374161163,1753233047607,-3000.0,0.0001879,2]
[374161164,1753233047616,-3000.0,0.000188,2]
[374161165,1753233047626,-3000.0,0.0001881,2]
[374161166,1753233047637,-3000.0,0.0001882,2]
[374161167,1753233047646,-3000.0,0.0001883,2]
[374161168,1753233047655,-3000.0,0.0001884,2]
[374161169,1753233047665,-3000.0,0.0001885,2]
[374161170,1753233047674,-3000.0,0.0001886,2]
[374161171,1753233047684,-3000.0,0.0001887,2]
[374161172,1753233047693,-500.0,0.00018873,2]
[374161173,1753233047702,-3000.0,0.0001888,2]
[374161174,1753233047711,-5956.792865,0.0001889,2]
[374161175,1753233047721,-1066.33173279,0.000189,2]
[374161176,1753233047731,-857.45,0.00018978,2]
[374161177,1753233047741,-1007.79,0.00018978,2]
[374161178,1753233047749,-1306.39,0.00018978,2]
[374161179,1753233047758,-1097.55,0.00018978,2]
[374161180,1753233047768,-460.0,0.00018978,2]
[374161181,1753233047777,-460.0,0.00018978,2]
[374161182,1753233047787,-460.0,0.00018979,2]
[374161183,1753233047796,-460.0,0.00018979,2]
[374161184,1753233047805,-2089.16,0.0001898,2]
[374161185,1753233047815,-1008.07,0.0001898,2]
[374161186,1753233047824,-774.97,0.0001898,2]
[374161187,1753233047834,-1434.22,0.0001898,2]
[374161188,1753233047843,-1865.85,0.0001898,2]
[374161189,1753233047853,-2977.13,0.00018982,2]
[374161190,1753233047863,-460.0,0.00018982,2]
[374161191,1753233047872,-460.0,0.00018982,2]
[374161192,1753233047881,-1070.76,0.00018982,2]
[374161193,1753233047890,-460.0,0.00018982,2]
[374161194,1753233047899,-460.0,0.00018982,2]
[374161195,1753233047909,-460.0,0.00018982,2]
[374161196,1753233047918,-460.0,0.00018982,2]
[374161197,1753233047928,-460.0,0.00018982,2]
[374161198,1753233047937,-460.0,0.00018982,2]
[374161199,1753233047947,-460.0,0.00018982,2]
[374161200,1753233047956,-460.0,0.00018982,2]
[374161201,1753233047965,-460.0,0.00018982,2]
[374161202,1753233047974,-460.0,0.00018982,2]
[374161203,1753233047984,-460.0,0.00018982,2]
[374161204,1753233047993,-460.0,0.00018982,2]
[374161205,1753233048002,-639.35,0.00018982,2]
[374161206,1753233048012,-880.33,0.00018982,2]
[374161207,1753233048022,-536.85,0.00018982,2]
[374161208,1753233048032,-363.96,0.00018982,2]
[374161209,1753233048042,-460.0,0.00018982,2]
[374161210,1753233048051,-675.06,0.00018982,2]
[374161211,1753233048061,-460.0,0.00018982,2]
[374161212,1753233048071,-460.0,0.00018982,2]
[374161213,1753233048080,-461.71,0.00018982,2]
[374161214,1753233048089,-477.97,0.00018982,2]
[374161215,1753233048098,-460.0,0.00018982,2]
[374161216,1753233048108,-460.0,0.00018982,2]
[374161217,1753233048118,-178.05580907,0.00018983,2]
[374161218,1753233048128,-231.06963584,0.00018984,2]
[374161219,1753233048138,-214.6393183,0.00018984,2]
[374161220,1753233048147,-500.0,0.00019003,2]
[374161221,1753233048156,-500.0,0.00019003,2]
[374161222,1753233048166,-2246.89872723,0.00019003,2]
[374161223,1753233048175,-190.657243,0.00019178,2]
[374161224,1753233048184,-260.0,0.0001918,2]
[374161225,1753233048194,-450.0,0.00019244,2]
[374161226,1753233048203,-500.0,0.00019244,2]
[374161227,1753233048213,-857.45,0.00019252,2]
[374161228,1753233048223,-1007.79,0.00019252,2]
[374161229,1753233048232,-1306.39,0.00019252,2]
[374161230,1753233048241,-1097.55,0.00019252,2]
[374161231,1753233048251,-460.0,0.00019252,2]
[374161232,1753233048260,-460.0,0.00019252,2]
[374161233,1753233048270,-460.0,0.00019253,2]
[374161234,1753233048280,-460.0,0.00019253,2]
[374161235,1753233048289,-2089.16,0.00019254,2]
[374161236,1753233048298,-1008.07,0.00019254,2]
[374161237,1753233048307,-774.97,0.00019254,2]
[374161238,1753233048317,-1434.22,0.00019254,2]
[374161239,1753233048327,-1865.85,0.00019254,2]
[374161240,1753233048336,-2977.13,0.00019256,2]
[374161241,1753233048345,-460.0,0.00019256,2]
[374161242,1753233048356,-460.0,0.00019256,2]
[374161243,1753233048366,-1070.76,0.00019256,2]
[374161244,1753233048375,-540.0,0.00019256,2]
[374161245,1753233048385,-460.0,0.00019256,2]
[374161246,1753233048395,-460.0,0.00019256,2]
[374161247,1753233048405,-460.0,0.00019256,2]
[374161248,1753233048415,-460.0,0.00019256,2]
[374161249,1753233048425,-460.0,0.00019256,2]
[374161250,1753233048434,-460.0,0.00019256,2]
[374161251,1753233048444,-639.35,0.00019256,2]
[374161252,1753233048453,-536.85,0.00019256,2]
[374161253,1753233048463,-460.0,0.00019256,2]
[374161254,1753233048472,-675.06,0.00019256,2]
[374161255,1753233048481,-460.0,0.00019256,2]
[374161256,1753233048490,-395.66,0.00019256,2]
[374161257,1753233048500,-461.71,0.00019256,2]
[374161258,1753233048510,-477.97,0.00019256,2]
[374161259,1753233048520,-460.0,0.00019256,2]
[374161260,1753233048530,-460.0,0.00019256,2]
[374161261,1753233048539,-2246.89872723,0.00019279,2]
[374161262,1753233048549,-1000.0,0.00019321,2]
[374161263,1753233048559,-1000.0,0.00019321,2]
[374161264,1753233048568,-1000.0,0.00019321,2]
[374161265,1753233048578,-982.49357615,0.00019321,2]
[374161266,1753233048587,-1003.27154105,0.00019321,2]
[374161267,1753233048597,-761.03102436,0.00019321,2]
[374161268,1753233048607,-515.89490897,0.00019321,2]
[374161269,1753233048617,-1000.0,0.00019321,2]
[374161270,1753233048627,-1000.0,0.00019321,2]
[374161271,1753233048639,-1000.0,0.00019321,2]
[374161272,1753233048648,-30118.55996196,0.00019329,2]
[374161273,1753233048658,-500.0,0.00019526,2]
[374161274,1753233048667,-857.45,0.00019526,2]
[374161275,1753233048678,-1007.79,0.00019526,2]
[374161276,1753233048688,-1306.39,0.00019526,2]
[374161277,1753233048697,-1097.55,0.00019526,2]
[374161278,1753233048707,-460.0,0.00019526,2]
[374161279,1753233048721,-460.0,0.00019526,2]
[374161280,1753233048732,-460.0,0.00019527,2]
[374161281,1753233048741,-460.0,0.00019527,2]
[374161282,1753233048751,-2089.16,0.00019528,2]
[374161283,1753233048760,-1008.07,0.00019528,2]
[374161284,1753233048769,-774.97,0.00019528,2]
[374161285,1753233048778,-1434.22,0.00019528,2]
[374161286,1753233048788,-1865.85,0.00019528,2]
[374161287,1753233048798,-2977.13,0.0001953,2]